Cogmind - Beta 17 @@@ ROGUE MODE // 2026.07.02 @ 18:09:42 Player: Lolterzard Result: Destroyed by G-34 Mercenary with Small Laser Performance ------------- Evolutions (1) 500 Regions Visited (2) 400 Robots Destroyed (42) 210 Value Destroyed (866) 866 Prototype IDs (3) 60 Alien Tech Used (0) 0 Bonus (0) 0 TOTAL SCORE: 2036 Bonus ------- None Cogmind --------- Core Integrity 0/400 Matter 226/300 Energy 100/100 System Corruption 2% Temperature Cool (6) Movement Rolling (175) Ox5 Location -9/Materials Parts ------- > --- POWER (1) -------- (None) > --- PROPULSION (4) --- Compact Wheel > --- UTILITY (2) ------ Huge Storage Unit Improved Propulsion Shielding > --- WEAPON (2) ------- Improved Assault Rifle > --- INVENTORY (25) --- Cooled Ion Engine Cooled Ion Engine Deuterium Engine Deuterium Engine Deuterium Engine Heat Sink Small Storage Unit High-capacity Storage Unit Large Battery (200) Medium Matter Pod (100) High-capacity Matter Pod (200) Improved Propulsion Shielding Improved Propulsion Shielding Light Armor Plating Tractor Beam Tractor Beam Maul Peak State ------------ > --- POWER ------------ Cooled Ion Engine > --- PROPULSION ------- Light Treads Light Treads Light Treads > --- UTILITY ---------- Huge Storage Unit Improved Propulsion Shielding > --- WEAPON ----------- Improved EM Shotgun Improved EM Shotgun > --- INVENTORY -------- Cooled Ion Engine Cooled Ion Engine Deuterium Engine Deuterium Engine Deuterium Engine Heat Sink Small Storage Unit High-capacity Storage Unit Large Battery Medium Matter Pod High-capacity Matter Pod Improved Propulsion Shielding Improved Propulsion Shielding Improved Propulsion Shielding Light Armor Plating Tractor Beam Tractor Beam Improved EM Shotgun Improved EM Shotgun Improved EM Shotgun Battle Rifle Improved Assault Rifle Maul [Rating: 20] Favorites ----------- Power Light Ion Engine Engine Light Ion Engine Propulsion Light Treads Treads Light Treads Wheel Compact Wheel Utility Huge Storage Unit Device Seismic Detector Storage Huge Storage Unit Protection Light Armor Plating Weapon Light Assault Rifle Energy Gun Improved EM Shotgun Ballistic Gun Light Assault Rifle Build | -11 -10 -9 ------- Run | Yrd Mat Mat Slots Evolved 2 | . . 2 Power . | . . . Propulsion 2 | . . 2 Utility . | . . . Weapon . | . . . Parts Attached 27 | 8 3 16 Power 4 | 1 1 2 Engine 4 | 1 1 2 Core . | . . . Reactor . | . . . Propulsion 5 | 2 . 3 Treads 4 | 2 . 2 Leg . | . . . Wheel 1 | . . 1 Hover . | . . . Flight . | . . . Utility 6 | 2 1 3 Device 1 | 1 . . Storage 2 | 1 1 . Processor . | . . . Hackware . | . . . Protection 3 | . . 3 Artifact . | . . . Weapon 12 | 3 1 8 Energy Gun 8 | 2 . 6 Energy Cannon . | . . . Ballistic Gun 4 | 1 1 2 Ballistic Cannon . | . . . Launcher . | . . . Special Weapon . | . . . Impact Weapon . | . . . Slashing Weapon . | . . . Piercing Weapon . | . . . Special Melee Weapon . | . . . Unidentified Prototypes 3 | . . 3 Parts Lost 17 | . 2 15 Power 2 | . 1 1 Propulsion 4 | . . 4 Utility 3 | . . 3 Weapon 8 | . 1 7 Highest Loss Streak 12 | . 1 12 To Critical Strikes . | . . . Average Backups 12 | 2 8 18 Power 1 | . . 2 Propulsion . | . . . Utility 7 | . 6 9 Weapon 3 | . 1 6 Tool/Special . | . . . Unused Backups 17 | . . 17 Power 6 | . . 6 Propulsion . | . . . Utility 10 | . . 10 Weapon 1 | . . 1 Tool/Special . | . . . Average Slot Usage (%) 89 | . 95 78 Engine 12 | . 13 10 Treads 26 | . 27 24 Device 10 | . 14 4 Storage 12 | . 14 11 Protection 2 | . . 6 Energy Gun 7 | . 3 14 Ballistic Gun 15 | . 20 6 Peak Build Rating 20 | 7 8 20 Average Rating 9 | 4 7 13 On Entrance 5 | . 7 8 Avg Prop Armor Cover (%) 24 | 20 . 29 Naked Turns . | . . . Heaviest Build 97 | 13 88 97 Greatest Support 60 | 40 40 60 Greatest Overweight (x) 5 | 2 2 5 Average Overweight (x) 1 | . 1 1 Largest Inventory Capacity 25 | 8 25 25 Average Capacity 22 | 6 21 25 Most Carried 25 | 5 14 25 Average Carried 12 | 2 8 18 Final Capacity 25 | 8 25 25 Final Carried 17 | 3 14 17 Class Distribution -------------------- 100% | Mutant Dominant Class ---------------- Mutant | -10/Materials Mutant | -9/Materials Resources | -11 -10 -9 ----------- Run | Yrd Mat Mat Matter Collected 1041 | 285 523 233 Remotely . | . . . Salvage Created 1652 | 107 390 1155 Parts 98 | 5 30 63 Haulers Intercepted 3 | . . 3 Recyclers Shooed 3 | . . 3 Parts Field Recycled . | . . . Retrieved Matter . | . . . Parts Self-Destructed . | . . . Prevented . | . . . Parts Restored . | . . . Kills | -11 -10 -9 ------- Run | Yrd Mat Mat Combat Hostiles Destroyed 27 | . 12 15 Guns 24 | . 12 12 AOE 3 | . . 3 Classes Destroyed 11 | 2 4 5 Worker 2 | . . 2 Builder 2 | . . 2 Tunneler 1 | 1 . . Hauler 3 | . . 3 Recycler 5 | 1 . 4 Watcher 2 | . 2 . Swarmer 8 | . 6 2 Grunt 15 | . 5 10 Brawler 1 | . . 1 Sentry 2 | . . 2 Subdweller 1 | . 1 . Best Kill Streak 8 | 1 4 8 Combat Bots Only 7 | . 3 7 Max Kills in Single Turn 2 | 1 1 2 Gunslinging . | . . . Exploded 1 | . . 1 Melee . | . . . Uniques/NPCs Destroyed . | . . . Combat | -11 -10 -9 -------- Run | Yrd Mat Mat Hostile Shots Fired 303 | . 82 221 Missed 82 | . 24 58 Hits 221 | . 58 163 Melee 3 | . . 3 Projectile 218 | . 58 160 Critical Strikes 3 | . 1 2 Damage Taken 2485 | . 542 1943 Core 529 | . 122 407 Absorbed by Shields . | . . . Redirected to Shielding 116 | . . 116 Regen/Repaired (Parts) 65 | . 65 . Core Remaining (%) 75 | 100 51 . Volleys Fired 123 | 5 57 61 Largest 2 | 2 2 2 Hottest 90 | 60 70 90 Shots Fired 223 | 10 99 114 Gun 223 | 10 99 114 Cannon . | . . . Launcher . | . . . Special . | . . . Kinetic 143 | 5 80 58 Thermal 27 | 5 19 3 Explosive . | . . . Electromagnetic 53 | . . 53 Robot Hit Streak 14 | 2 8 14 Robot Miss Streak 5 | 1 5 4 Penetration Max . | . . . Secondary Targets 6 | . 1 5 Max Gunslinging Chain 1 | . 1 1 Shots Hit Robots 145 | 5 53 87 Core Hits 74 | 3 25 46 Critical Kills 1 | . . 1 Critical Parts Destroyed . | . . . Critical Strikes 2 | . 1 1 Burn 1 | . 1 . Destroy 1 | . . 1 Melee Attacks . | . . . Impact . | . . . Slashing . | . . . Piercing . | . . . Sneak Attacks . | . . . Combat Hostiles . | . . . Follow-up Attacks . | . . . Damage Inflicted 2162 | 56 551 1555 Guns 1905 | 56 551 1298 Cannons . | . . . Explosions 245 | . . 245 Melee . | . . . Ramming 12 | . . 12 Kinetic 969 | 32 404 533 Thermal 441 | 24 147 270 Explosive . | . . . Electromagnetic 740 | . . 740 Impact . | . . . Slashing . | . . . Piercing . | . . . Highest Corruption 3 | . 3 2 Average Corruption 2 | . 2 2 Corruption Purged . | . . . Corruption Blocked . | . . . Effects 25 | . 23 2 Message Errors 7 | . 6 1 Matter Fused 9 | . 9 . Heat Flow Errors 4 | . 3 1 Energy Discharges 2 | . 2 . Data Loss (minor) 2 | . 2 . Data Loss (major) 1 | . 1 . Overload Shots . | . . . Overflow Damage 14 | . . 14 Projectiles . | . . . Explosions 14 | . . 14 Melee . | . . . Knockbacks 1 | . . 1 Impact 1 | . . 1 Kinetic . | . . . Secondary . | . . . Self-Inflicted Damage 28 | . . 28 Shots 1 | . . 1 Rammed 2 | . . 2 Targets Rammed 2 | . . 2 Kicked . | . . . Crushed . | . . . Highest Temperature 279 | 20 279 205 Average Temperature 56 | 10 77 45 Received Heat Transfer 921 | . 114 807 Effects 1 | . 1 . Interference 1 | . 1 . Siege Activations . | . . . Martial Activations . | . . . Shielding Activations . | . . . Robots Disrupted . | . . . Combat Hostiles . | . . . Robots Corrupted . | . . . Combat Hostiles . | . . . Parts Fried 3 | . . 3 Impact Corruptions . | . . . Robots Melted . | . . . Combat Hostiles . | . . . Parts Melted 1 | . 1 . Heat Transferred 956 | 50 482 424 Parts Sabotaged . | . . . Parts Stolen . | . . . Parts Stripped . | . . . Power Chain Reactions 4 | . . 4 Alert | -11 -10 -9 ------- Run | Yrd Mat Mat Maximum Alert Level . | . . . Low Security (%) 100 | 100 100 100 Level 1 . | . . . Level 2 . | . . . Level 3 . | . . . Level 4 . | . . . Level 5 . | . . . High Security . | . . . Max Security . | . . . Peak Influence 130 | 5 127 130 Initial 15 | . . 15 Average 20 | 1 23 16 Influence Increases 758 | 10 318 430 Destroy 0b10 Robot/C 520 | . 220 300 Destroy 0b10 Robot/NC 75 | 10 10 55 Destroy Leader 110 | . 54 56 Successful Hack 19 | . 19 . Disable Machine 15 | . . 15 Destroy Structure 4 | . . 4 Lose Combat Pursuer 15 | . 15 . Influence Decreases 628 | 10 280 338 Entered New Map 23 | . . 23 Time Decay 472 | 10 270 192 Lost Part 133 | . 10 123 Squads Dispatched 4 | . 3 1 Investigation 2 | . 2 . Extermination . | . . . Reinforcement 2 | . 1 1 Assault . | . . . Garrison . | . . . Intercept . | . . . Searches Triggered . | . . . Construction Impeded . | . . . Haulers Reinforced . | . . . Active Scanning Responses . | . . . Cargo Convoy Interrupts . | . . . Stealth | -11 -10 -9 --------- Run | Yrd Mat Mat Distress Signals 7 | . 2 5 Communications Jammed . | . . . Distress Signals . | . . . Times Spotted 50 | . 19 31 Peak Tracking Total 11 | . 3 11 Tactical Retreats 1 | . 1 . Traps | -11 -10 -9 ------- Run | Yrd Mat Mat Traps Triggered 2 | . 1 1 Indirectly . | . . . Trap Hack Attempts . | . . . Triggered . | . . . Disarmed . | . . . Reprogrammed . | . . . Reused . | . . . Traps Extracted . | . . . Installed . | . . . Triggered . | . . . Machines | -11 -10 -9 ---------- Run | Yrd Mat Mat Machines Disabled 1 | . . 1 Max in Single Turn 1 | . . 1 Machines Repaired . | . . . Machines Dismantled . | . . . Machines Sabotaged . | . . . Overloaded Fab Kills . | . . . Hacking | -11 -10 -9 --------- Run | Yrd Mat Mat Machines Accessed 8 | . 6 2 Terminals 6 | . 4 2 Fabricators . | . . . Repair Stations 1 | . 1 . Recycling Units 1 | . 1 . Scanalyzers . | . . . Garrison Access . | . . . Total Hacks 23 | . 16 7 Successful 8 | . 7 1 Failed 15 | . 9 6 Catastrophic 1 | . 1 . Database Lockouts . | . . . Manual 6 | . 3 3 Terminals 16 | . 9 7 Fabricators . | . . . Repair Stations 4 | . 4 . Recycling Units 3 | . 3 . Scanalyzers . | . . . Garrison Access . | . . . Terminal Hacks 2 | . 2 . Hauler Manifests 1 | . 1 . Registered Components 1 | . 1 . Fabricator Hacks . | . . . Repair Station Hacks 3 | . 3 . Scan Component 2 | . 2 . Repair 1 | . 1 . Recycling Unit Hacks 1 | . 1 . Retrieve Components 1 | . 1 . Scanalyzer . | . . . Garrison Access Hacks . | . . . Unauthorized Hacks 2 | . 1 1 Terminals 2 | . 1 1 Botnet 2 | . 1 1 Fabricators . | . . . Repair Stations . | . . . Recycling Units . | . . . Scanalyzers . | . . . Garrison Access . | . . . Data Cores Recovered . | . . . Used . | . . . Hacking Detections 6 | . 4 2 Full Trace Events 4 | . 3 1 Feedback Events 1 | . 1 . Corruption 1 | . 1 . Feedback Blocked . | . . . Robot Schematics Acquired . | . . . Robots Built . | . . . Authchips . | . . . Time . | . . . Total Robot Build Rating . | . . . Part Schematics Acquired . | . . . Parts Built . | . . . Authchips . | . . . Time . | . . . Total Part Build Rating . | . . . Part Studies Acquired . | . . . Parts Repaired 1 | . 1 . Time 26 | . 26 . Parts Recycled . | . . . Recycled Matter . | . . . Retrieved Matter . | . . . Retrieved Components 10 | . 10 . Parts Scanalyzed . | . . . Part Schematics Acquired . | . . . Parts Damaged . | . . . Bothacking | -11 -10 -9 ------------ Run | Yrd Mat Mat Used RIF Installer . | . . . Robots Hacked . | . . . Non-combat . | . . . Combat . | . . . Robot Hacks Applied . | . . . Relay Couplers Released . | . . . Fabnet Peak Effective % . | . . . Robots Rewired . | . . . Allies Hacked . | . . . Hacks Repelled . | . . . Allies | -11 -10 -9 -------- Run | Yrd Mat Mat Total Allies . | . . . Largest Group . | . . . Highest-Rated Group . | . . . Highest-Rated Ally . | . . . Total Orders . | . . . Ally Attacks . | . . . Total Damage . | . . . Kills . | . . . Allies Corrupted . | . . . Allies Melted . | . . . Intel | -11 -10 -9 ------- Run | Yrd Mat Mat Active Infowar (turns) 1721 | . 1361 360 Seismic 1721 | . 1361 360 Robot Analysis Total . | . . . Derelict Logs Recovered . | . . . Drone Launches . | . . . Drone Recoveries . | . . . Exploration | -11 -10 -9 ------------- Run | Yrd Mat Mat Turns Passed 2954 | 82 1876 996 Spaces Moved 923 | 50 595 278 Core 27 | 27 . . Treads 887 | 23 595 269 Legs . | . . . Wheels 9 | . . 9 Hover . | . . . Flight . | . . . Fastest Speed 50 | 50 160 175 Average Speed 257 | 106 259 279 Slowest Speed 480 | 160 320 480 Overloaded Moves . | . . . Propulsion Burnouts . | . . . Robots Hopped . | . . . Potential Cave-ins . | . . . Cave-ins Triggered . | . . . Exploration Rate (%) 41 | 3 85 35 Regions Visited 2 Branch Regions . Pre-discovered Areas . | . . . Known Exits Taken . | . . . Unknown Exits Taken 2 | 1 1 . Scrap Searched . | . . . Spaces Dug . | . . . Terrain Destroyed 4 | . . 4 Melee . | . . . Projectile . | . . . AOE 4 | . . 4 Terrain Rammed . | . . . Walls Destroyed . | . . . Machines Disabled . | . . . Actions | -11 -10 -9 --------- Run | Yrd Mat Mat Total 1301 | 67 842 392 Wait 171 | . 171 . Move 921 | 49 594 278 Hop . | . . . Pick Up 32 | 5 11 16 Fast Attach 15 | 5 1 9 Attach 16 | 2 3 11 Detach 6 | . 1 5 Swap 7 | 1 4 2 Drop 8 | . . 8 Fire 123 | 5 57 61 Melee . | . . . Ram . | . . . Kick . | . . . Crush 2 | . . 2 Escape Stasis . | . . . Rewire . | . . . Trap . | . . . Miscellaneous . | . . . Route ------- -11/Scrapyard -10/Materials (discovered 4 exits: *Mat x2 / [*Min x2]) -9/Materials History --------- Turn | Location | Event 4 | -11/Scrapyard | Discovered new exit (range 16) 83 | -11/Scrapyard | Entered Materials 156 | -10/Materials | Discovered new exit (range 7) 249 | -10/Materials | Discovered new exit (range 9) 312 | -10/Materials | Build established: Mutant 445 | -10/Materials | Discovered new exit (range 10) 683 | -10/Materials | Derelicts attacked the area 722 | -10/Materials | Repaired Lgt. Treads 1437 | -10/Materials | Discovered new exit (range 9) 1959 | -10/Materials | Entered another Materials area 1959 | -9/Materials | Evolved 2 slots: Propulsion x2 2919 | -9/Materials | Core integrity fell below 50% 2936 | -9/Materials | Core integrity fell below 20% 2955 | -9/Materials | Destroyed by G-34 Mercenary with Small Laser Last Messages --------------- 02941_ Y-45 Defender suffers critical hit (Destroy). 02941_ Y-45 Defender destroyed. 02941_ R-06 Scavenger collects Aluminum Leg. 02942_ K-01 Serf collects debris. 02942_ U-05 Engineer lays Concrete. 02943_ K-01 Serf collects debris. 02943_ G-34 Mercenary destroyed. 02944_ U-05 Engineer lays Concrete. 02944_ K-01 Serf collects debris. 02944_ R-06 Scavenger collects Lgt. Armor Plating. 02945_ U-05 Engineer lays Concrete. 02945_ U-05 Engineer builds a Wall. 02945_ K-01 Serf collects debris. 02945_ U-05 Engineer lays Concrete. 02945_ K-01 Serf collects debris. 02946_ U-05 Engineer lays Concrete. 02947_ R-06 Scavenger collects Lgt. Assault Rifle. 02948_ K-01 Serf collects debris. 02950_ R-06 Scavenger collects Lgt. Assault Rifle. 02951_ K-01 Serf collects debris. Map ----- +----------------------------------------------------+ | ?????????????????????????????????????????????????? | | ?????????????????????????????????????????????????? | | ?????????????????????????????????????????????????? | | ?????????????????????????????????????????????????? | | ?????????????????????????????????????????????????? | | ???????????????????????????????? ????????????? | | ?????????????????????????????? ??????????? | | ??????????????????????????? ???????? | | ??????????????????????????# ?????? | | ??????????????????????????# ???? | | ??????????????????????????# ???? | | ?????????????????????????## ??? | | ?????????????????????????#T ??? | | ??????????????????????????# ! ?? | | ??????????????????????????# ?? | | ??????????????????????????# ? | | ??????????????????????????# ? | | ??????????????????????????# " ? | | ??????????????????????????# | | ?????????????????? ??????# | | ?????????????????? ??????# ** = | | ?????????????????? ??????# * *k* % | | ?????????????????? ??????# =%[ %=! | | ?????????????????? ????### "! * / | | ??????????# #######+#######k=%T | | ??????????# !@%!k[ | | ??????????# /[[%g* | | ??????????# *%%%w* ? | | ??????????# #### == = kr ##############? | | ?????????????????# * #?????????????? | | ?????????????????# %% ""#?????????????? | | ?????????????????# Y"#?????????????? | | ?????????????????# =%=""#?????????????? | | ?????????????????# #?????????????? | | ?????????????????# % #?????????????? | | ?????????????????## #???########??? | | ??????????????????# #???# #??? | | ??????????????????# #???# """ #??? | | ??????????????????# #???#= """ #??? | | ??????????????????# % #???# """ #??? | | ??????????????????# #???# #??? | | ??????????????????# #????? ???? | | ??????????????????# % ########+###### | | ??????????????????# % | | ??????????????????# | | ??????????????????# % ^^ | | ??????????????????####+####% ###+###^^ #% | | ???????????????????# # ## ?# # | | ???????????????????#?? #]] !!## # ]]]]# | | ????????????????????? """ #]] !!## # *]]]]# | +----------------------------------------------------+ Best States ------------- Heat Dissipation 28 Energy Generation 14 Energy Capacity 280 Matter Stores 300 Matter Capacity 300 Sight Range 16 Terrain Scan Density 10 Armor Coverage 150 Propulsion Shielding 66 Evasion (%) 50 Recoil Reduction 3 Item Schematics ----------------- None Robot Schematics ------------------ None Fabricated ------------ Nothing Repaired ---------- Lgt. Treads | 53% | -10/Materials Studied --------- None Alien Tech Used ----------------- None Achievements -------------- None Challenges ------------ None Game ------ Seed SingularityCoilSword Manual? 0 Play Time 00:13:26 Cumulative 74.1 hours Start 2026.07.02 @ 17:58:43 End 2026.07.02 @ 18:09:42 Sessions 1 Manual Loads 0 Difficulty Rogue Special Mode None Game No. 155 Rogue 155 Adventurer 0 Explorer 0 Win Type - Total 0 Types 0/0/0/0/0/0/0/0/0/0 Lore% 36 Gallery% 32 Achievement% 27 Wizard Run 0 Options --------- Layout 0 ASCII 0 Keyboard 0 Movement Mouse Keybinds 0 Fullscreen 2 Font 24/Smallcaps Map View 76x50 Zoom Use 0% Tactical HUD 1 Map Filters NONE Filters NONE Steam 1 RUN: 4b7d41f9-8f95-40c7-9605-968463e6dab8